[Event "FIDE World Rapid Chess Championship 2021"]
[White "Van Foreest, Lucas"]
[Black "Zvjaginsev, Vadim"]
[WhiteFideId "1039792"]
[BlackFideId "4113403"]
[WhiteElo "2374"]
[BlackElo "2539"]
[Result "1/2-1/2"]
[Round "07"]
[TimeControl "900+10"]
[Date "2021.12.27"]
[WhiteClock "0:05:17"]
[BlackClock "0:01:48"]

1. e4 {[%clk 0:15:00]}  c5 {[%clk 0:15:00]} 2. c3 {[%clk 0:15:00]}  e6 {[%clk 0:15:00]} 3. Nf3 {[%clk 0:15:00]}  Nc6 {[%clk 0:15:00]} 4. d4 {[%clk 0:15:00]}  d5 {[%clk 0:15:00]} 5. exd5 {[%clk 0:15:00]}  exd5 {[%clk 0:15:00]} 6. Bb5 {[%clk 0:15:00]}  Bd6 {[%clk 0:15:00]} 7. dxc5 {[%clk 0:15:00]}  Bxc5 {[%clk 0:15:00]} 8. O-O {[%clk 0:16:04]}  Nf6 {[%clk 0:15:43]} 9. Re1+ {[%clk 0:16:04]}  Be6 {[%clk 0:15:43]} 10. Be3 {[%clk 0:16:04]}  Bxe3 {[%clk 0:15:43]} 11. Rxe3 {[%clk 0:16:04]}  O-O {[%clk 0:15:43]} 12. Na3 {[%clk 0:16:04]}  Qb6 {[%clk 0:15:43]} 13. Nd4 {[%clk 0:16:04]}  Nxd4 {[%clk 0:15:14]} 14. Qxd4 {[%clk 0:14:32]}  Qxd4 {[%clk 0:15:14]} 15. cxd4 {[%clk 0:14:32]}  Rfc8 {[%clk 0:15:14]} 16. f3 {[%clk 0:14:32]}  a6 {[%clk 0:15:14]} 17. Bd3 {[%clk 0:14:32]}  Ne8 {[%clk 0:15:14]} 18. Rd1 {[%clk 0:14:37]}  Nd6 {[%clk 0:13:40]} 19. Nb1 {[%clk 0:14:37]}  b5 {[%clk 0:13:40]} 20. Re2 {[%clk 0:14:37]}  g6 {[%clk 0:13:08]} 21. Nd2 {[%clk 0:12:56]}  Bf5 {[%clk 0:13:08]} 22. Bxf5 {[%clk 0:12:56]}  Nxf5 {[%clk 0:13:08]} 23. Nb3 {[%clk 0:12:56]}  a5 {[%clk 0:13:08]} 24. g4 {[%clk 0:12:56]}  Nd6 {[%clk 0:13:08]} 25. Nc5 {[%clk 0:14:08]}  a4 {[%clk 0:10:37]} 26. Kf2 {[%clk 0:14:08]}  b4 {[%clk 0:10:37]} 27. Nd7 {[%clk 0:14:08]}  Ra5 {[%clk 0:10:37]} 28. Nc5 {[%clk 0:14:08]}  Nb5 {[%clk 0:09:48]} 29. Nd7 {[%clk 0:13:00]}  Kg7 {[%clk 0:09:23]} 30. Rdd2 {[%clk 0:10:46]}  a3 {[%clk 0:09:23]} 31. b3 {[%clk 0:10:46]}  Rc7 {[%clk 0:07:39]} 32. Nc5 {[%clk 0:10:06]}  Ra8 {[%clk 0:07:39]} 33. Re1 {[%clk 0:08:58]}  Nc3 {[%clk 0:06:21]} 34. Nd3 {[%clk 0:06:09]}  Rb8 {[%clk 0:06:21]} 35. Rc1 {[%clk 0:06:09]}  Rbc8 {[%clk 0:06:21]} 36. Kg2 {[%clk 0:06:09]}  Rb8 {[%clk 0:03:59]} 37. Rdc2 {[%clk 0:06:29]}  Re7 {[%clk 0:03:59]} 38. Kf2 {[%clk 0:06:29]}  g5 {[%clk 0:03:59]} 39. Nxb4 {[%clk 0:06:29]}  Ne4+ {[%clk 0:03:59]} 40. fxe4 {[%clk 0:06:29]}  Rxb4 {[%clk 0:03:59]} 41. Rc5 {[%clk 0:05:33]}  Rxe4 {[%clk 0:03:17]} 42. Rxd5 {[%clk 0:05:33]}  Rxg4 {[%clk 0:03:17]} 43. Rc4 {[%clk 0:05:33]}  Rb7 {[%clk 0:03:17]} 44. Rf5 {[%clk 0:05:17]}  Kg6 {[%clk 0:01:48]} 45. Rf3 {[%clk 0:05:17]}  Re4 {[%clk 0:01:48]} 46. Re3 {[%clk 0:05:17]}  Rf4+ {[%clk 0:01:48]} 47. Rf3 {[%clk 0:05:17]}  Re4 {[%clk 0:01:48]} 48. Re3 {[%clk 0:05:17]}  Rf4+ {[%clk 0:01:48]} 49. Rf3 {[%clk 0:05:17]} 1/2-1/2


[Site "http://www.Chess.com"]

[Event "FIDE World Rapid Chess Championship 2021"]
[White "Murzin, Volodar"]
[Black "Szpar, Milosz"]
[WhiteFideId "44155573"]
[BlackFideId "1184989"]
[WhiteElo "2523"]
[BlackElo "2315"]
[Result "1/2-1/2"]
[Round "07"]
[TimeControl "900+10"]
[Date "2021.12.27"]
[WhiteClock "0:00:41"]
[BlackClock "0:00:24"]

1. e4 {[%clk 0:15:00]}  c5 {[%clk 0:15:00]} 2. Nf3 {[%clk 0:15:00]}  d6 {[%clk 0:15:00]} 3. Bb5+ {[%clk 0:15:00]}  Bd7 {[%clk 0:15:00]} 4. Bxd7+ {[%clk 0:15:00]}  Nxd7 {[%clk 0:15:00]} 5. O-O {[%clk 0:15:00]}  Ngf6 {[%clk 0:15:00]} 6. Qe2 {[%clk 0:15:00]}  e6 {[%clk 0:15:34]} 7. c3 {[%clk 0:15:55]}  Be7 {[%clk 0:15:34]} 8. d4 {[%clk 0:15:55]}  O-O {[%clk 0:15:34]} 9. Rd1 {[%clk 0:15:55]}  Rc8 {[%clk 0:15:34]} 10. e5 {[%clk 0:13:54]}  Ne8 {[%clk 0:12:55]} 11. Bf4 {[%clk 0:04:19]}  Qb6 {[%clk 0:12:55]} 12. d5 {[%clk 0:03:50]}  dxe5 {[%clk 0:10:41]} 13. Nxe5 {[%clk 0:03:50]}  Nxe5 {[%clk 0:10:41]} 14. Bxe5 {[%clk 0:03:50]}  exd5 {[%clk 0:09:19]} 15. Rxd5 {[%clk 0:03:06]}  Qe6 {[%clk 0:09:19]} 16. Rd2 {[%clk 0:03:06]}  Rd8 {[%clk 0:04:18]} 17. Kf1 {[%clk 0:02:52]}  Nf6 {[%clk 0:04:18]} 18. Bxf6 {[%clk 0:02:19]}  Qxf6 {[%clk 0:04:18]} 19. Rxd8 {[%clk 0:02:19]}  Rxd8 {[%clk 0:04:18]} 20. Nd2 {[%clk 0:02:19]}  Qf4 {[%clk 0:04:18]} 21. Nf3 {[%clk 0:02:19]}  Bf6 {[%clk 0:04:18]} 22. Re1 {[%clk 0:02:19]}  g6 {[%clk 0:04:18]} 23. Qb5 {[%clk 0:01:32]}  b6 {[%clk 0:01:42]} 24. h3 {[%clk 0:01:32]}  h5 {[%clk 0:01:42]} 25. Qe2 {[%clk 0:01:32]}  Qa4 {[%clk 0:00:54]} 26. a3 {[%clk 0:00:36]}  Qb3 {[%clk 0:00:54]} 27. g3 {[%clk 0:00:36]}  b5 {[%clk 0:00:54]} 28. Kg2 {[%clk 0:00:36]}  a5 {[%clk 0:00:54]} 29. h4 {[%clk 0:00:36]}  b4 {[%clk 0:00:54]} 30. Qa6 {[%clk 0:00:36]}  Kg7 {[%clk 0:00:54]} 31. Qxa5 {[%clk 0:00:36]}  bxc3 {[%clk 0:00:54]} 32. bxc3 {[%clk 0:00:36]}  Qxc3 {[%clk 0:00:54]} 33. Qxc3 {[%clk 0:00:36]}  Bxc3 {[%clk 0:00:54]} 34. Rc1 {[%clk 0:00:36]}  Bb2 {[%clk 0:00:24]} 35. Rxc5 {[%clk 0:00:41]}  Bxa3 {[%clk 0:00:24]} 36. Rc7 {[%clk 0:00:41]}  Re8 {[%clk 0:00:24]} 1/2-1/2


[Site "http://www.Chess.com"]

[Event "FIDE World Rapid Chess Championship 2021"]
[White "Moroni, Luca Jr"]
[Black "Aditya, Mittal"]
[WhiteFideId "865834"]
[BlackFideId "35042025"]
[WhiteElo "2519"]
[BlackElo "1488"]
[Result "1-0"]
[Round "07"]
[TimeControl "900+10"]
[Date "2021.12.27"]
[WhiteClock "0:00:45"]
[BlackClock "0:00:18"]

1. d4 {[%clk 0:15:00]}  Nf6 {[%clk 0:15:00]} 2. c4 {[%clk 0:15:00]}  e6 {[%clk 0:15:00]} 3. Nc3 {[%clk 0:15:00]}  Bb4 {[%clk 0:15:00]} 4. Nf3 {[%clk 0:15:00]}  b6 {[%clk 0:14:51]} 5. e3 {[%clk 0:16:05]}  O-O {[%clk 0:14:51]} 6. Bd3 {[%clk 0:16:05]}  d5 {[%clk 0:14:51]} 7. O-O {[%clk 0:16:05]}  Bb7 {[%clk 0:14:51]} 8. cxd5 {[%clk 0:16:05]}  exd5 {[%clk 0:14:51]} 9. Ne5 {[%clk 0:16:05]}  Bd6 {[%clk 0:14:51]} 10. f4 {[%clk 0:16:05]}  c5 {[%clk 0:14:51]} 11. g4 {[%clk 0:16:05]}  cxd4 {[%clk 0:14:51]} 12. exd4 {[%clk 0:16:05]}  Ne4 {[%clk 0:14:51]} 13. g5 {[%clk 0:16:46]}  Nd7 {[%clk 0:13:25]} 14. Be3 {[%clk 0:15:30]}  Nxe5 {[%clk 0:09:13]} 15. fxe5 {[%clk 0:14:13]}  Be7 {[%clk 0:08:10]} 16. h4 {[%clk 0:14:13]}  f5 {[%clk 0:08:10]} 17. gxf6 {[%clk 0:12:47]}  gxf6 {[%clk 0:06:32]} 18. Bh6 {[%clk 0:12:47]}  Kh8 {[%clk 0:06:32]} 19. Bxf8 {[%clk 0:09:14]}  Qxf8 {[%clk 0:05:44]} 20. Bxe4 {[%clk 0:09:14]}  dxe4 {[%clk 0:05:44]} 21. Qh5 {[%clk 0:09:14]}  e3 {[%clk 0:06:00]} 22. Kh2 {[%clk 0:07:23]}  Rd8 {[%clk 0:06:00]} 23. Ne2 {[%clk 0:07:23]}  Ba6 {[%clk 0:06:00]} 24. Rf4 {[%clk 0:06:03]}  Qe8 {[%clk 0:03:41]} 25. Qxe8+ {[%clk 0:04:25]}  Rxe8 {[%clk 0:03:41]} 26. Ng3 {[%clk 0:04:25]}  fxe5 {[%clk 0:03:41]} 27. dxe5 {[%clk 0:04:25]}  Rc8 {[%clk 0:03:41]} 28. Nf5 {[%clk 0:04:27]}  Bf8 {[%clk 0:00:31]} 29. Re1 {[%clk 0:02:05]}  e2 {[%clk 0:00:40]} 30. Nd6 {[%clk 0:02:05]}  Rb8 {[%clk 0:00:40]} 31. Rg1 {[%clk 0:02:05]}  Bg7 {[%clk 0:00:40]} 32. e6 {[%clk 0:02:05]}  h6 {[%clk 0:00:40]} 33. e7 {[%clk 0:02:05]}  Bb5 {[%clk 0:00:40]} 34. Re4 {[%clk 0:00:45]}  Be8 {[%clk 0:00:18]} 35. Rxe2 {[%clk 0:00:45]}  Bf6 {[%clk 0:00:18]} 36. Rf1 {[%clk 0:00:45]}  Kg7 {[%clk 0:00:18]} 37. Rg2+ {[%clk 0:00:45]} 1-0


[Site "http://www.Chess.com"]

[Event "FIDE World Rapid Chess Championship 2021"]
[White "Babazada, Khazar"]
[Black "Smirin, Ilia"]
[WhiteFideId "13413554"]
[BlackFideId "2801990"]
[WhiteElo "2170"]
[BlackElo "2663"]
[Result "1-0"]
[Round "07"]
[TimeControl "900+10"]
[Date "2021.12.27"]
[WhiteClock "0:00:40"]
[BlackClock "0:01:05"]

1. e4 {[%clk 0:15:00]}  g6 {[%clk 0:15:00]} 2. d4 {[%clk 0:15:00]}  Bg7 {[%clk 0:15:00]} 3. Nc3 {[%clk 0:15:00]}  d6 {[%clk 0:15:00]} 4. Nf3 {[%clk 0:15:00]}  Nf6 {[%clk 0:15:00]} 5. h3 {[%clk 0:15:00]}  O-O {[%clk 0:15:00]} 6. Be2 {[%clk 0:16:02]}  c5 {[%clk 0:15:09]} 7. dxc5 {[%clk 0:16:02]}  Qa5 {[%clk 0:15:09]} 8. O-O {[%clk 0:16:02]}  Qxc5 {[%clk 0:15:09]} 9. Be3 {[%clk 0:16:02]}  Qa5 {[%clk 0:15:09]} 10. Qd2 {[%clk 0:16:02]}  Nc6 {[%clk 0:14:32]} 11. a3 {[%clk 0:14:31]}  Re8 {[%clk 0:14:32]} 12. Rfe1 {[%clk 0:14:22]}  Bd7 {[%clk 0:13:39]} 13. b4 {[%clk 0:14:22]}  Qd8 {[%clk 0:13:39]} 14. Bc4 {[%clk 0:14:22]}  Rc8 {[%clk 0:13:15]} 15. Bb3 {[%clk 0:11:04]}  Be6 {[%clk 0:13:15]} 16. Bxe6 {[%clk 0:11:04]}  fxe6 {[%clk 0:13:15]} 17. Rad1 {[%clk 0:11:04]}  Nd7 {[%clk 0:12:45]} 18. Ng5 {[%clk 0:10:28]}  Nf8 {[%clk 0:12:45]} 19. Ne2 {[%clk 0:09:25]}  Ne5 {[%clk 0:11:21]} 20. Bd4 {[%clk 0:09:25]}  Qc7 {[%clk 0:11:21]} 21. c3 {[%clk 0:09:25]}  a6 {[%clk 0:09:08]} 22. Qa2 {[%clk 0:08:37]}  Qc4 {[%clk 0:08:01]} 23. Qxc4 {[%clk 0:08:37]}  Nxc4 {[%clk 0:08:01]} 24. Bxg7 {[%clk 0:08:37]}  Kxg7 {[%clk 0:08:01]} 25. Nf4 {[%clk 0:08:37]}  e5 {[%clk 0:08:01]} 26. Nd5 {[%clk 0:08:37]}  Nxa3 {[%clk 0:07:26]} 27. f4 {[%clk 0:06:02]}  Nc4 {[%clk 0:07:26]} 28. f5 {[%clk 0:06:02]}  h6 {[%clk 0:07:00]} 29. Ne6+ {[%clk 0:05:50]}  Nxe6 {[%clk 0:07:00]} 30. fxe6 {[%clk 0:05:50]}  Rf8 {[%clk 0:07:00]} 31. Rf1 {[%clk 0:05:50]}  Rxf1+ {[%clk 0:07:00]} 32. Kxf1 {[%clk 0:05:50]}  Nb2 {[%clk 0:07:00]} 33. Rd2 {[%clk 0:05:50]}  Na4 {[%clk 0:04:54]} 34. Rd3 {[%clk 0:04:58]}  b6 {[%clk 0:04:54]} 35. Ke2 {[%clk 0:04:58]}  a5 {[%clk 0:04:54]} 36. Kd2 {[%clk 0:04:58]}  Rf8 {[%clk 0:04:54]} 37. Rg3 {[%clk 0:03:34]}  Re8 {[%clk 0:02:08]} 38. Kc2 {[%clk 0:02:32]}  axb4 {[%clk 0:02:08]} 39. cxb4 {[%clk 0:02:32]}  b5 {[%clk 0:02:08]} 40. Kb3 {[%clk 0:02:32]}  h5 {[%clk 0:02:08]} 41. h4 {[%clk 0:02:32]}  Kh6 {[%clk 0:02:08]} 42. Rf3 {[%clk 0:02:32]}  g5 {[%clk 0:02:08]} 43. hxg5+ {[%clk 0:02:32]}  Kxg5 {[%clk 0:02:08]} 44. Rf7 {[%clk 0:02:42]}  h4 {[%clk 0:01:31]} 45. Rh7 {[%clk 0:02:42]}  Rg8 {[%clk 0:01:31]} 46. Rxe7 {[%clk 0:02:42]}  Kh6 {[%clk 0:01:31]} 47. Rf7 {[%clk 0:01:42]}  Rg3+ {[%clk 0:01:09]} 48. Kc2 {[%clk 0:01:42]}  Rxg2+ {[%clk 0:01:09]} 49. Kb3 {[%clk 0:01:42]}  Rg3+ {[%clk 0:01:09]} 50. Kc2 {[%clk 0:01:42]}  Rg2+ {[%clk 0:01:09]} 51. Kc1 {[%clk 0:01:42]}  h3 {[%clk 0:01:09]} 52. Rf3 {[%clk 0:01:42]}  h2 {[%clk 0:01:09]} 53. Rh3+ {[%clk 0:01:42]}  Kg7 {[%clk 0:01:05]} 54. e7 {[%clk 0:00:40]}  Nc3 {[%clk 0:01:05]} 55. e8=Q {[%clk 0:00:40]}  Ne2+ {[%clk 0:01:05]} 56. Kb1 {[%clk 0:00:40]} 1-0


[Site "http://www.Chess.com"]

[Event "FIDE World Rapid Chess Championship 2021"]
[White "Cuenca Jimenez, Jose Fernando"]
[Black "Harikrishna, Pentala"]
[WhiteFideId "2255570"]
[BlackFideId "5007003"]
[WhiteElo "2421"]
[BlackElo "2705"]
[Result "1/2-1/2"]
[Round "07"]
[TimeControl "900+10"]
[Date "2021.12.27"]
[WhiteClock "0:00:23"]
[BlackClock "0:02:33"]

1. d4 {[%clk 0:15:00]}  Nf6 {[%clk 0:15:00]} 2. c4 {[%clk 0:15:00]}  e6 {[%clk 0:15:00]} 3. Nf3 {[%clk 0:15:00]}  d5 {[%clk 0:15:00]} 4. Nc3 {[%clk 0:15:00]}  c6 {[%clk 0:15:00]} 5. Bg5 {[%clk 0:15:00]}  Nbd7 {[%clk 0:15:35]} 6. e3 {[%clk 0:15:21]}  Qa5 {[%clk 0:15:35]} 7. Nd2 {[%clk 0:15:21]}  Bb4 {[%clk 0:15:35]} 8. Rc1 {[%clk 0:15:21]}  Ne4 {[%clk 0:15:31]} 9. Ndxe4 {[%clk 0:10:53]}  dxe4 {[%clk 0:14:57]} 10. Bh4 {[%clk 0:10:53]}  Qxa2 {[%clk 0:14:57]} 11. Qc2 {[%clk 0:10:53]}  Nb6 {[%clk 0:14:57]} 12. Be2 {[%clk 0:09:50]}  Na4 {[%clk 0:14:57]} 13. O-O {[%clk 0:09:50]}  Bxc3 {[%clk 0:14:57]} 14. bxc3 {[%clk 0:09:50]}  Qxc2 {[%clk 0:14:57]} 15. Rxc2 {[%clk 0:09:50]}  Nb6 {[%clk 0:14:34]} 16. Ra1 {[%clk 0:07:07]}  Nd7 {[%clk 0:12:06]} 17. c5 {[%clk 0:07:07]}  O-O {[%clk 0:12:06]} 18. Rca2 {[%clk 0:07:07]}  a6 {[%clk 0:12:06]} 19. Be7 {[%clk 0:07:07]}  Re8 {[%clk 0:10:41]} 20. Bd6 {[%clk 0:06:12]}  e5 {[%clk 0:10:41]} 21. Rb2 {[%clk 0:06:12]}  exd4 {[%clk 0:10:41]} 22. cxd4 {[%clk 0:06:12]}  Nf6 {[%clk 0:10:41]} 23. Bc4 {[%clk 0:06:12]}  h6 {[%clk 0:09:48]} 24. Ra5 {[%clk 0:05:32]}  Be6 {[%clk 0:09:48]} 25. Bxe6 {[%clk 0:05:32]}  Rxe6 {[%clk 0:09:48]} 26. Rxb7 {[%clk 0:05:32]}  Nd5 {[%clk 0:09:48]} 27. Bg3 {[%clk 0:04:57]}  g5 {[%clk 0:08:44]} 28. Rb6 {[%clk 0:03:16]}  f5 {[%clk 0:08:02]} 29. Be5 {[%clk 0:03:16]}  f4 {[%clk 0:07:38]} 30. exf4 {[%clk 0:01:15]}  gxf4 {[%clk 0:07:38]} 31. Rbxa6 {[%clk 0:01:15]}  Rae8 {[%clk 0:07:38]} 32. Ra7 {[%clk 0:01:15]}  R6e7 {[%clk 0:04:41]} 33. Kf1 {[%clk 0:01:31]}  Kf7 {[%clk 0:04:41]} 34. R5a6 {[%clk 0:01:31]}  Rxa7 {[%clk 0:04:41]} 35. Rxa7+ {[%clk 0:01:31]}  Re7 {[%clk 0:04:41]} 36. Rxe7+ {[%clk 0:01:31]}  Kxe7 {[%clk 0:04:41]} 37. f3 {[%clk 0:01:31]}  e3 {[%clk 0:04:22]} 38. g3 {[%clk 0:01:07]}  fxg3 {[%clk 0:04:22]} 39. hxg3 {[%clk 0:01:07]}  h5 {[%clk 0:04:22]} 40. Ke2 {[%clk 0:01:07]}  Ke6 {[%clk 0:04:22]} 41. Bg7 {[%clk 0:01:07]}  Ne7 {[%clk 0:04:22]} 42. g4 {[%clk 0:01:07]}  hxg4 {[%clk 0:04:22]} 43. fxg4 {[%clk 0:01:07]}  Nd5 {[%clk 0:04:22]} 44. Bh6 {[%clk 0:00:26]}  Nf6 {[%clk 0:03:23]} 45. Kf3 {[%clk 0:00:26]}  e2 {[%clk 0:03:23]} 46. Bd2 {[%clk 0:00:26]}  Kd5 {[%clk 0:03:23]} 47. g5 {[%clk 0:00:26]}  Ng8 {[%clk 0:03:23]} 48. Kxe2 {[%clk 0:00:26]}  Kxd4 {[%clk 0:03:23]} 49. Be3+ {[%clk 0:00:00]}  Ke5 {[%clk 0:02:58]} 50. Kd3 {[%clk 0:00:00]}  Ne7 {[%clk 0:02:58]} 51. Kc4 {[%clk 0:00:00]}  Nd5 {[%clk 0:02:58]} 52. Bd2 {[%clk 0:00:00]}  Kf5 {[%clk 0:02:58]} 53. Kb3 {[%clk 0:00:00]}  Nc7 {[%clk 0:02:58]} 54. Kb4 {[%clk 0:00:00]}  Na6+ {[%clk 0:02:58]} 55. Kc4 {[%clk 0:00:00]}  Nc7 {[%clk 0:02:58]} 56. Be3 {[%clk 0:00:00]}  Nd5 {[%clk 0:02:58]} 57. Bc1 {[%clk 0:00:00]}  Nc7 {[%clk 0:02:58]} 58. Be3 {[%clk 0:00:23]}  Nd5 {[%clk 0:02:33]} 59. Bc1 {[%clk 0:00:23]}  Nc7 {[%clk 0:02:33]} 60. Kb4 {[%clk 0:00:23]}  Na6+ {[%clk 0:02:33]} 61. Kc4 {[%clk 0:00:23]}  Ke5 {[%clk 0:02:33]} 1/2-1/2


[Site "http://www.Chess.com"]

[Event "FIDE World Rapid Chess Championship 2021"]
[White "Halkias, Stelios"]
[Black "Nevednichy, Vladislav"]
[WhiteFideId "4201809"]
[BlackFideId "1205730"]
[WhiteElo "2576"]
[BlackElo "2425"]
[Result "1-0"]
[Round "07"]
[TimeControl "900+10"]
[Date "2021.12.27"]
[WhiteClock "0:01:52"]
[BlackClock "0:02:38"]

1. Nf3 {[%clk 0:15:00]}  Nf6 {[%clk 0:15:00]} 2. c4 {[%clk 0:15:00]}  d6 {[%clk 0:15:00]} 3. Nc3 {[%clk 0:15:00]}  g6 {[%clk 0:15:00]} 4. g3 {[%clk 0:15:00]}  Bg7 {[%clk 0:15:00]} 5. Bg2 {[%clk 0:15:31]}  O-O {[%clk 0:15:43]} 6. d4 {[%clk 0:15:31]}  c6 {[%clk 0:15:43]} 7. O-O {[%clk 0:15:31]}  Bf5 {[%clk 0:15:43]} 8. Re1 {[%clk 0:15:31]}  Ne4 {[%clk 0:15:43]} 9. Qb3 {[%clk 0:15:31]}  Nxc3 {[%clk 0:15:43]} 10. bxc3 {[%clk 0:15:31]}  Bc8 {[%clk 0:15:43]} 11. e4 {[%clk 0:15:31]}  Nd7 {[%clk 0:15:43]} 12. Bg5 {[%clk 0:14:44]}  h6 {[%clk 0:15:46]} 13. Bf4 {[%clk 0:14:44]}  e5 {[%clk 0:15:46]} 14. Be3 {[%clk 0:14:44]}  c5 {[%clk 0:15:46]} 15. a4 {[%clk 0:12:48]}  Qc7 {[%clk 0:15:13]} 16. a5 {[%clk 0:12:48]}  Rb8 {[%clk 0:15:14]} 17. dxe5 {[%clk 0:09:50]}  dxe5 {[%clk 0:14:36]} 18. Red1 {[%clk 0:06:14]}  b6 {[%clk 0:12:20]} 19. Qb5 {[%clk 0:06:13]}  Re8 {[%clk 0:08:45]} 20. axb6 {[%clk 0:04:54]}  axb6 {[%clk 0:08:45]} 21. Rab1 {[%clk 0:04:54]}  Rb7 {[%clk 0:08:45]} 22. h3 {[%clk 0:01:43]}  Nf6 {[%clk 0:04:47]} 23. Nd2 {[%clk 0:01:43]}  Bd7 {[%clk 0:02:38]} 24. Qb3 {[%clk 0:01:52]}  Bc6 {[%clk 0:02:38]} 25. Ra1 {[%clk 0:01:52]} 1-0


[Site "http://www.Chess.com"]

[Event "FIDE World Rapid Chess Championship 2021"]
[White "Blohberger, Felix"]
[Black "Gagunashvili, Merab"]
[WhiteFideId "1632051"]
[BlackFideId "13601652"]
[WhiteElo "2409"]
[BlackElo "2538"]
[Result "1-0"]
[Round "07"]
[TimeControl "900+10"]
[Date "2021.12.27"]
[WhiteClock "0:02:40"]
[BlackClock "0:00:11"]

1. d4 {[%clk 0:15:00]}  d6 {[%clk 0:15:00]} 2. e4 {[%clk 0:15:00]}  Nf6 {[%clk 0:15:00]} 3. Nc3 {[%clk 0:15:00]}  e5 {[%clk 0:15:00]} 4. dxe5 {[%clk 0:15:00]}  dxe5 {[%clk 0:15:00]} 5. Qxd8+ {[%clk 0:15:00]}  Kxd8 {[%clk 0:15:00]} 6. Bc4 {[%clk 0:15:00]}  Ke8 {[%clk 0:15:00]} 7. Nf3 {[%clk 0:15:00]}  Bd6 {[%clk 0:15:00]} 8. Be3 {[%clk 0:14:32]}  a6 {[%clk 0:15:26]} 9. a4 {[%clk 0:14:32]}  h6 {[%clk 0:15:26]} 10. Ke2 {[%clk 0:14:32]}  Bg4 {[%clk 0:15:26]} 11. h3 {[%clk 0:14:32]}  Bh5 {[%clk 0:15:26]} 12. g4 {[%clk 0:14:32]}  Bg6 {[%clk 0:15:26]} 13. Nh4 {[%clk 0:13:12]}  Nxe4 {[%clk 0:14:36]} 14. Nxg6 {[%clk 0:10:22]}  Nxc3+ {[%clk 0:14:36]} 15. bxc3 {[%clk 0:10:22]}  fxg6 {[%clk 0:14:36]} 16. Rab1 {[%clk 0:12:27]}  Nc6 {[%clk 0:10:09]} 17. Bd3 {[%clk 0:12:27]}  Rb8 {[%clk 0:09:01]} 18. Bxg6+ {[%clk 0:10:54]}  Ke7 {[%clk 0:09:01]} 19. Be4 {[%clk 0:10:54]}  Na5 {[%clk 0:07:31]} 20. f3 {[%clk 0:10:09]}  b6 {[%clk 0:07:31]} 21. Rhd1 {[%clk 0:09:21]}  Nb7 {[%clk 0:05:49]} 22. Bxb6 {[%clk 0:07:29]}  Nc5 {[%clk 0:04:59]} 23. Bxc5 {[%clk 0:07:29]}  Bxc5 {[%clk 0:04:59]} 24. Rxb8 {[%clk 0:07:29]}  Rxb8 {[%clk 0:04:59]} 25. Rd5 {[%clk 0:07:29]}  Bd6 {[%clk 0:03:32]} 26. Ra5 {[%clk 0:06:56]}  Rb6 {[%clk 0:03:32]} 27. Bd3 {[%clk 0:06:56]}  Rc6 {[%clk 0:03:32]} 28. Kd2 {[%clk 0:06:44]}  Kf6 {[%clk 0:01:04]} 29. Bxa6 {[%clk 0:04:57]}  Rc5 {[%clk 0:00:05]} 30. Rxc5 {[%clk 0:02:40]}  Bxc5 {[%clk 0:00:11]} 31. Kd3 {[%clk 0:02:40]}  Ke6 {[%clk 0:00:11]} 32. Ke4 {[%clk 0:02:40]}  Be7 {[%clk 0:00:11]} 33. Bc8+ {[%clk 0:02:40]}  Kd6 {[%clk 0:00:11]} 34. a5 {[%clk 0:02:40]}  Bf6 {[%clk 0:00:11]} 35. a6 {[%clk 0:02:40]} 1-0


[Site "http://www.Chess.com"]

[Event "FIDE World Rapid Chess Championship 2021"]
[White "Kuzmicz, Krystian"]
[Black "Donchenko, Alexander"]
[WhiteFideId "1119125"]
[BlackFideId "24603295"]
[WhiteElo "2314"]
[BlackElo "2535"]
[Result "0-1"]
[Round "07"]
[TimeControl "900+10"]
[Date "2021.12.27"]
[WhiteClock "0:01:54"]
[BlackClock "0:06:32"]

1. e4 {[%clk 0:15:00]}  c5 {[%clk 0:15:00]} 2. d3 {[%clk 0:15:00]}  Nc6 {[%clk 0:15:00]} 3. g3 {[%clk 0:15:00]}  g6 {[%clk 0:15:00]} 4. Bg2 {[%clk 0:15:00]}  Bg7 {[%clk 0:15:00]} 5. f4 {[%clk 0:15:00]}  e6 {[%clk 0:15:00]} 6. Nf3 {[%clk 0:15:00]}  Nge7 {[%clk 0:15:00]} 7. O-O {[%clk 0:15:00]}  O-O {[%clk 0:15:00]} 8. c3 {[%clk 0:15:00]}  b5 {[%clk 0:15:00]} 9. Be3 {[%clk 0:15:00]}  d6 {[%clk 0:15:00]} 10. d4 {[%clk 0:16:35]}  cxd4 {[%clk 0:15:22]} 11. cxd4 {[%clk 0:16:35]}  Qb6 {[%clk 0:15:22]} 12. Bf2 {[%clk 0:16:35]}  d5 {[%clk 0:15:22]} 13. e5 {[%clk 0:16:35]}  a5 {[%clk 0:15:22]} 14. Re1 {[%clk 0:16:53]}  b4 {[%clk 0:15:04]} 15. g4 {[%clk 0:16:53]}  Ba6 {[%clk 0:15:04]} 16. Nbd2 {[%clk 0:16:53]}  Bd3 {[%clk 0:14:08]} 17. Re3 {[%clk 0:14:38]}  Bb5 {[%clk 0:14:08]} 18. Nb3 {[%clk 0:14:38]}  Bh6 {[%clk 0:12:25]} 19. Ng5 {[%clk 0:13:14]}  Bg7 {[%clk 0:12:17]} 20. Rh3 {[%clk 0:12:09]}  h6 {[%clk 0:12:17]} 21. Nf3 {[%clk 0:12:09]}  Rac8 {[%clk 0:09:56]} 22. Qd2 {[%clk 0:10:40]}  Rc7 {[%clk 0:09:56]} 23. Be3 {[%clk 0:10:17]}  Rfc8 {[%clk 0:08:18]} 24. f5 {[%clk 0:09:08]}  exf5 {[%clk 0:06:54]} 25. Bxh6 {[%clk 0:09:08]}  Bxe5 {[%clk 0:06:54]} 26. Nxe5 {[%clk 0:05:00]}  Nxe5 {[%clk 0:06:55]} 27. Bf4 {[%clk 0:05:00]}  Nxg4 {[%clk 0:06:55]} 28. Bxc7 {[%clk 0:05:00]}  Rxc7 {[%clk 0:06:55]} 29. Re1 {[%clk 0:05:00]}  a4 {[%clk 0:06:32]} 30. Nc5 {[%clk 0:01:54]}  Rxc5 {[%clk 0:06:32]} 31. Rxe7 {[%clk 0:01:54]}  Rc4 {[%clk 0:06:32]} 32. Bxd5 {[%clk 0:01:54]}  Rxd4 {[%clk 0:06:32]} 0-1


[Site "http://www.Chess.com"]